fUSD/lending_fUSD_20260506
["ID","MTS","AMOUNT","RATE_DAILY","PERIOD"]
[421710922,1778051453000,-474.98520692,0.00038277,2]
[421710946,1778051453000,-481.18706949,0.00038277,2]
[421710934,1778051453000,-309.07064608,0.00038277,2]
[421710923,1778051453000,-300.0,0.00038277,2]
[421710914,1778051453000,-724.83131769,0.00038277,2]
[421710920,1778051453000,-300.0,0.00038277,2]
[421710941,1778051453000,-310.3725982,0.00038277,2]
[421710902,1778051453000,-300.0,0.00038277,2]
[421710901,1778051453000,-300.0,0.00038277,2]
[421710903,1778051453000,-300.0,0.00038277,2]
[421710907,1778051453000,-300.0,0.00038277,2]
[421710904,1778051453000,-300.0,0.00038277,2]
[421710906,1778051453000,-603.45144378,0.00038277,2]
[421710905,1778051453000,-300.0,0.00038277,2]
[421710912,1778051453000,-891.9241332,0.00038277,2]
[421710911,1778051453000,-1065.13491717,0.00038277,2]
[421710913,1778051453000,-309.13065885,0.00038277,2]
[421710909,1778051453000,-526.86051061,0.00038277,2]
[421710910,1778051453000,-529.86413524,0.00038277,2]
[421710908,1778051453000,-300.0,0.00038277,2]
[421710921,1778051453000,-300.0,0.00038277,2]
[421710917,1778051453000,-300.0,0.00038277,2]
[421710916,1778051453000,-301.2859328,0.00038277,2]
[421710918,1778051453000,-300.0,0.00038277,2]
[421710919,1778051453000,-300.06118393,0.00038277,2]
[421710915,1778051453000,-300.0,0.00038277,2]
[421710948,1778051453000,-451.13853711,0.00038277,2]
[421710933,1778051453000,-1145.24599896,0.00038277,2]
[421710942,1778051453000,-300.0,0.00038277,2]
[421710963,1778051453000,-300.0,0.00038277,2]
[421710971,1778051453000,-457.95813116,0.00038277,2]
[421710967,1778051453000,-486.68807297,0.00038277,2]
[421710969,1778051453000,-300.0,0.00038277,2]
[421710974,1778051453000,-341.92124282,0.00038277,2]
[421710975,1778051453000,-300.0,0.00038277,2]
[421710973,1778051453000,-300.0,0.00038277,2]
[421710977,1778051453000,-603.45144378,0.00038277,2]
[421710968,1778051453000,-536.33523926,0.00038277,2]
[421710976,1778051453000,-300.0,0.00038277,2]
[421710980,1778051453000,-300.0,0.00038277,2]
[421710978,1778051453000,-370.25519289,0.00038277,2]
[421710981,1778051453000,-526.86051061,0.00038277,2]
[421710985,1778051453000,-724.83131769,0.00038277,2]
[421710983,1778051453000,-891.9241332,0.00038277,2]
[421710986,1778051453000,-300.0,0.00038277,2]
[421710984,1778051453000,-309.13065885,0.00038277,2]
[421710943,1778051453000,-581.67009202,0.00038277,2]
[421710979,1778051453000,-300.0,0.00038277,2]
[421710965,1778051453000,-468.74824467,0.00038277,2]
[421710982,1778051453000,-1065.13491717,0.00038277,2]
[421710962,1778051453000,-300.0,0.00038277,2]
[421710944,1778051453000,-463.08064867,0.00038277,2]
[421710970,1778051453000,-300.0,0.00038277,2]
[421710949,1778051453000,-300.0,0.00038277,2]
[421710945,1778051453000,-300.0,0.00038277,2]
[421710950,1778051453000,-300.0,0.00038277,2]
[421710952,1778051453000,-300.0,0.00038277,2]
[421710951,1778051453000,-300.0,0.00038277,2]
[421710954,1778051453000,-300.0,0.00038277,2]
[421710955,1778051453000,-483.27319916,0.00038277,2]
[421710947,1778051453000,-300.0,0.00038277,2]
[421710959,1778051453000,-300.0,0.00038277,2]
[421710960,1778051453000,-1092.83356842,0.00038277,2]
[421710956,1778051453000,-309.32134718,0.00038277,2]
[421710961,1778051453000,-300.0,0.00038277,2]
[421710958,1778051453000,-543.79786294,0.00038277,2]
[421710957,1778051453000,-300.0,0.00038277,2]
[421710964,1778051453000,-300.0,0.00038277,2]
[421710972,1778051453000,-491.85958444,0.00038277,2]
[421710953,1778051453000,-300.0,0.00038277,2]
[421710966,1778051453000,-300.0,0.00038277,2]
[421711038,1778051454000,-327.24367179,0.00038277,2]
[421711033,1778051454000,-300.0,0.00038277,2]
[421711023,1778051454000,-309.32134718,0.00038277,2]
[421711019,1778051454000,-300.0,0.00038277,2]
[421711021,1778051454000,-300.0,0.00038277,2]
[421711025,1778051454000,-300.0,0.00038277,2]
[421711028,1778051454000,-300.0,0.00038277,2]
[421711022,1778051454000,-483.27319916,0.00038277,2]
[421711026,1778051454000,-300.0,0.00038277,2]
[421711040,1778051454000,-300.0,0.00038277,2]
[421711018,1778051454000,-300.0,0.00038277,2]
[421711017,1778051454000,-300.0,0.00038277,2]
[421711032,1778051454000,-300.0,0.00038277,2]
[421711048,1778051454000,-309.13065885,0.00038277,2]
[421711037,1778051454000,-491.85958444,0.00038277,2]
[421711051,1778051454000,-301.2859328,0.00038277,2]
[421711036,1778051454000,-300.0,0.00038277,2]
[421711053,1778051454000,-300.06118393,0.00038277,2]
[421711045,1778051454000,-526.86051061,0.00038277,2]
[421711046,1778051454000,-1065.13491717,0.00038277,2]
[421711047,1778051454000,-891.9241332,0.00038277,2]
[421711042,1778051454000,-603.45144378,0.00038277,2]
[421711055,1778051454000,-310.91685491,0.00038277,2]
[421711034,1778051454000,-300.0,0.00038277,2]
[421711039,1778051454000,-300.0,0.00038277,2]
[421711041,1778051454000,-300.0,0.00038277,2]
[421711024,1778051454000,-300.0,0.00038277,2]
[421711050,1778051454000,-300.0,0.00038277,2]
[421711020,1778051454000,-300.0,0.00038277,2]
[421711000,1778051454000,-343.40295571,0.00038277,2]
[421711009,1778051454000,-310.3725982,0.00038277,2]
[421710987,1778051454000,-301.2859328,0.00038277,2]
[421710991,1778051454000,-394.23469836,0.00038277,2]
[421710990,1778051454000,-300.06118393,0.00038277,2]
[421710988,1778051454000,-412.2298188,0.00038277,2]
[421710989,1778051454000,-300.0,0.00038277,2]
[421711001,1778051454000,-300.0,0.00038277,2]
[421710993,1778051454000,-300.0,0.00038277,2]
[421711002,1778051454000,-300.0,0.00038277,2]
[421710992,1778051454000,-300.0,0.00038277,2]
[421710996,1778051454000,-852.7601399,0.00038277,2]
[421711003,1778051454000,-1145.24599896,0.00038277,2]
[421710995,1778051454000,-300.0,0.00038277,2]
[421710994,1778051454000,-508.38469429,0.00038277,2]
[421711027,1778051454000,-1092.83356842,0.00038277,2]
[421710998,1778051454000,-1793.38851355,0.00038277,2]
[421710999,1778051454000,-300.0,0.00038277,2]
[421711005,1778051454000,-395.30336188,0.00038277,2]
[421711013,1778051454000,-481.18706949,0.00038277,2]
[421711014,1778051454000,-300.0,0.00038277,2]
[421711015,1778051454000,-451.13853711,0.00038277,2]
[421711006,1778051454000,-862.96230178,0.00038277,2]
[421711008,1778051454000,-537.17655498,0.00038277,2]
[421711004,1778051454000,-309.07064608,0.00038277,2]
[421711016,1778051454000,-300.0,0.00038277,2]
[421711007,1778051454000,-300.0,0.00038277,2]
[421711011,1778051454000,-463.08064867,0.00038277,2]
[421711012,1778051454000,-300.0,0.00038277,2]
[421711010,1778051454000,-300.0,0.00038277,2]
[421710997,1778051454000,-300.0,0.00038277,2]
[421711054,1778051454000,-300.0,0.00038277,2]
[421711049,1778051454000,-724.83131769,0.00038277,2]
[421711030,1778051454000,-300.0,0.00038277,2]
[421711106,1778051454000,-500.0,0.00038356,2]
[421711090,1778051454000,-186.7459471,0.00038278,120]
[421711094,1778051454000,-500.0,0.00038278,120]
[421711088,1778051454000,-489.59051486,0.00038277,2]
[421711097,1778051454000,-2017.4305,0.00038351,2]
[421711096,1778051454000,-271.5036769,0.00038278,120]
[421711085,1778051454000,-300.0,0.00038277,2]
[421711098,1778051454000,-181.5689,0.00038351,2]
[421711082,1778051454000,-300.0,0.00038277,2]
[421711089,1778051454000,-300.0,0.00038277,2]
[421711099,1778051454000,-164.13,0.00038356,30]
[421711091,1778051454000,-210.1366791,0.00038278,120]
[421711105,1778051454000,-3257.0,0.00038356,2]
[421711083,1778051454000,-309.32134718,0.00038277,2]
[421711087,1778051454000,-300.0,0.00038277,2]
[421711095,1778051454000,-701.6405734,0.00038278,120]
[421711093,1778051454000,-331.5694761,0.00038278,120]
[421711084,1778051454000,-300.0,0.00038277,2]
[421711092,1778051454000,-283.6996602,0.00038278,120]
[421711100,1778051454000,-150.0,0.00038356,120]
[421711103,1778051454000,-300.0,0.00038356,2]
[421711102,1778051454000,-300.0,0.00038356,2]
[421711104,1778051454000,-269.0,0.00038356,2]
[421711101,1778051454000,-336.92,0.00038356,120]
[421711108,1778051454000,-900.0,0.00038356,2]
[421711107,1778051454000,-378.0,0.00038356,2]
[421711029,1778051454000,-300.0,0.00038277,2]
[421711086,1778051454000,-1092.83356842,0.00038277,2]
[421711078,1778051454000,-300.0,0.00038277,2]
[421711109,1778051454000,-900.0,0.00038356,2]
[421711074,1778051454000,-300.0,0.00038277,2]
[421711031,1778051454000,-300.0,0.00038277,2]
[421711035,1778051454000,-300.0,0.00038277,2]
[421711052,1778051454000,-300.0,0.00038277,2]
[421711044,1778051454000,-300.0,0.00038277,2]
[421711043,1778051454000,-300.0,0.00038277,2]
[421711067,1778051454000,-300.0,0.00038277,2]
[421711057,1778051454000,-852.7601399,0.00038277,2]
[421711061,1778051454000,-343.40295571,0.00038277,2]
[421711073,1778051454000,-300.0,0.00038277,2]
[421711064,1778051454000,-1145.24599896,0.00038277,2]
[421711068,1778051454000,-300.0,0.00038277,2]
[421711063,1778051454000,-368.09857022,0.00038277,2]
[421711056,1778051454000,-300.0,0.00038277,2]
[421711058,1778051454000,-300.0,0.00038277,2]
[421711065,1778051454000,-309.07064608,0.00038277,2]
[421711060,1778051454000,-300.0,0.00038277,2]
[421711071,1778051454000,-463.08064867,0.00038277,2]
[421711059,1778051454000,-1793.38851355,0.00038277,2]
[421711080,1778051454000,-300.0,0.00038277,2]
[421711079,1778051454000,-300.0,0.00038277,2]
[421711075,1778051454000,-451.13853711,0.00038277,2]
[421711081,1778051454000,-483.27319916,0.00038277,2]
[421711072,1778051454000,-481.18706949,0.00038277,2]
[421711076,1778051454000,-300.0,0.00038277,2]
[421711070,1778051454000,-310.3725982,0.00038277,2]
[421711069,1778051454000,-300.0,0.00038277,2]
[421711066,1778051454000,-862.96230178,0.00038277,2]
[421711062,1778051454000,-300.0,0.00038277,2]
[421711077,1778051454000,-300.0,0.00038277,2]
[421711165,1778051455000,-155.53159687,0.0004,90]
[421711159,1778051455000,-3645.03,0.00039884,120]
[421711155,1778051455000,-2017.4305,0.0003979,2]
[421711157,1778051455000,-150.68,0.00039798,120]
[421711142,1778051455000,-500.0,0.00039431,15]
[421711153,1778051455000,-250.0,0.00039753,65]
[421711148,1778051455000,-500.0,0.00039704,30]
[421711147,1778051455000,-151.0,0.00039695,14]
[421711161,1778051455000,-3645.03,0.00039984,120]
[421711156,1778051455000,-152.0,0.00039792,12]
[421711151,1778051455000,-1872.62650784,0.00039707,2]
[421711143,1778051455000,-2017.4305,0.0003955,2]
[421711174,1778051455000,-2017.4305,0.00040029,2]
[421711162,1778051455000,-150.68,0.00039998,120]
[421711164,1778051455000,-1178.78069179,0.0004,120]
[421711158,1778051455000,-250.17,0.00039858,30]
[421711160,1778051455000,-150.68,0.00039898,120]
[421711144,1778051455000,-150.0,0.00039579,2]
[421711145,1778051455000,-268.92707043,0.00039626,2]
[421711152,1778051455000,-603012.464,0.00039708,30]
[421711163,1778051455000,-3646.09057343,0.00039999,120]
[421711146,1778051455000,-156.48951136,0.00039686,120]
[421711150,1778051455000,-500.0,0.00039704,30]
[421711154,1778051455000,-3645.03,0.00039784,120]
[421711173,1778051455000,-2000.0,0.0004,120]
[421711130,1778051455000,-712.0,0.00039298,2]
[421711149,1778051455000,-500.0,0.00039704,30]
[421711135,1778051455000,-928.0,0.00039298,2]
[421711138,1778051455000,-2000.0,0.000393,7]
[421711132,1778051455000,-150.322,0.00039298,2]
[421711176,1778051455000,-174.84,0.0004006,120]
[421711112,1778051455000,-750.0,0.00038356,2]
[421711113,1778051455000,-744.0,0.00038356,2]
[421711114,1778051455000,-500.0,0.00038356,2]
[421711115,1778051455000,-500.0,0.00038356,2]
[421711117,1778051455000,-150.0,0.000385,120]
[421711116,1778051455000,-358.0,0.00038356,2]
[421711111,1778051455000,-750.0,0.00038356,2]
[421711110,1778051455000,-889.0,0.00038356,2]
[421711119,1778051455000,-2017.4305,0.00038591,2]
[421711129,1778051455000,-2017.4305,0.0003907,2]
[421711121,1778051455000,-150.0,0.00038614,2]
[421711127,1778051455000,-668.65185757,0.00038897,2]
[421711125,1778051455000,-174.84,0.0003883,120]
[421711133,1778051455000,-753.0,0.00039298,2]
[421711122,1778051455000,-253.6098031,0.00038614,2]
[421711131,1778051455000,-3094.0,0.00039298,2]
[421711136,1778051455000,-6043.0,0.00039298,2]
[421711123,1778051455000,-192.0,0.00038663,90]
[421711126,1778051455000,-2017.4305,0.00038831,2]
[421711141,1778051455000,-349.64208127,0.00039351,2]
[421711134,1778051455000,-1223.425,0.00039298,2]
[421711139,1778051455000,-2017.4305,0.0003931,2]
[421711137,1778051455000,-3625.0,0.00039298,2]
[421711140,1778051455000,-4000.0,0.00039342,60]
[421711128,1778051455000,-500.16742932,0.00038904,5]
[421711120,1778051455000,-152.0,0.000386,11]
[421711124,1778051455000,-500.0,0.00038816,14]
[421711168,1778051455000,-10374.8165888,0.0004,120]
[421711118,1778051455000,-469.04,0.000385,30]
[421711170,1778051455000,-11996.04537072,0.0004,4]
[421711202,1778051455000,-176.593,0.00040343,2]
[421711203,1778051455000,-183.0,0.00040343,2]
[421711206,1778051455000,-29270.36953544,0.00040433,2]
[421711205,1778051455000,-150.68,0.00040398,120]
[421711213,1778051455000,-268.92707037,0.00040566,2]
[421711212,1778051455000,-1099.5765,0.0004055,4]
[421711214,1778051455000,-150.68,0.00040598,120]
[421711208,1778051455000,-150.68,0.00040498,120]
[421711209,1778051455000,-361.72528501,0.00040499,2]
[421711207,1778051455000,-4000.0,0.00040438,60]
[421711210,1778051455000,-156.79057218,0.000405,120]
[421711211,1778051455000,-1247.3476,0.0004055,4]
[421711204,1778051455000,-243.041,0.00040343,2]
[421711217,1778051455000,-150.68,0.00040698,120]
[421711215,1778051455000,-500.0,0.0004066,16]
[421711219,1778051455000,-151.0,0.000408,120]
[421711220,1778051455000,-350.0,0.00040814,5]
[421711222,1778051455000,-151.0,0.00040947,14]
[421711225,1778051455000,-97612.0,0.0004095,60]
[421711216,1778051455000,-250.0,0.00040661,80]
[421711228,1778051455000,-150.68,0.00040998,120]
[421711221,1778051455000,-150.68,0.00040898,120]
[421711223,1778051455000,-500.0,0.00040949,2]
[421711218,1778051455000,-150.68,0.00040798,120]
[421711227,1778051455000,-152.0,0.00040984,13]
[421711229,1778051455000,-1745.0,0.00041,120]
[421711224,1778051455000,-500.0,0.00040949,30]
[421711191,1778051455000,-278.092369,0.00040274,30]
[421711226,1778051455000,-163.0,0.00040976,11]
[421711199,1778051455000,-241.487,0.00040343,2]
[421711197,1778051455000,-173.908,0.00040343,2]
[421711175,1778051455000,-500.0,0.00040045,16]
[421711171,1778051455000,-151.0,0.0004,120]
[421711177,1778051455000,-3645.0548,0.00040084,120]
[421711169,1778051455000,-161.49,0.0004,2]
[421711167,1778051455000,-492.92741505,0.0004,120]
[421711172,1778051455000,-154.0,0.0004,120]
[421711186,1778051455000,-151.0,0.00040274,30]
[421711181,1778051455000,-157.0,0.00040181,3]
[421711179,1778051455000,-150.68,0.00040098,120]
[421711183,1778051455000,-150.0,0.00040223,2]
[421711189,1778051455000,-278.092369,0.00040274,30]
[421711180,1778051455000,-336.92,0.00040164,120]
[421711184,1778051455000,-2017.4306,0.00040269,2]
[421711166,1778051455000,-319.54666784,0.0004,2]
[421711182,1778051455000,-150.68,0.00040198,120]
[421711185,1778051455000,-151.0,0.00040274,30]
[421711195,1778051455000,-275.0,0.00040343,2]
[421711193,1778051455000,-150.68,0.00040298,120]
[421711200,1778051455000,-194.277,0.00040343,2]
[421711192,1778051455000,-196.85,0.0004029,60]
[421711201,1778051455000,-253.321,0.00040343,2]
[421711198,1778051455000,-150.0,0.00040343,2]
[421711196,1778051455000,-250.0,0.00040343,2]
[421711188,1778051455000,-278.092369,0.00040274,30]
[421711178,1778051455000,-268.92707037,0.00040096,2]
[421711187,1778051455000,-151.0,0.00040274,30]
[421711190,1778051455000,-278.092369,0.00040274,30]
[421711194,1778051455000,-150.0,0.00040343,2]
[421711285,1778051456000,-338.16041432,0.00041636,2]
[421711263,1778051456000,-20073.95676645,0.00041209,70]
[421711260,1778051456000,-151.0,0.00041209,120]
[421711254,1778051456000,-151.0,0.00041209,30]
[421711253,1778051456000,-282.89652,0.00041209,120]
[421711259,1778051456000,-151.0,0.00041209,120]
[421711278,1778051456000,-1535.82484893,0.0004151,7]
[421711281,1778051456000,-4000.0,0.00041562,60]
[421711280,1778051456000,-150.0,0.00041558,120]
[421711258,1778051456000,-151.0,0.00041209,30]
[421711266,1778051456000,-174.85,0.0004128,120]
[421711267,1778051456000,-150.68,0.00041298,120]
[421711290,1778051456000,-175.17,0.00041748,120]
[421711289,1778051456000,-150.68,0.00041698,120]
[421711269,1778051456000,-5849.43500782,0.00041386,2]
[421711256,1778051456000,-151.0,0.00041209,30]
[421711272,1778051456000,-192.0,0.00041425,90]
[421711277,1778051456000,-268.92707037,0.00041507,3]
[421711286,1778051456000,-202.45805464,0.0004168,60]
[421711279,1778051456000,-163.0,0.00041536,11]
[421711282,1778051456000,-150.68,0.00041598,120]
[421711288,1778051456000,-1142.1,0.00041694,120]
[421711268,1778051456000,-250.0,0.00041311,91]
[421711271,1778051456000,-2000.0,0.00041403,120]
[421711255,1778051456000,-282.89652,0.00041209,120]
[421711249,1778051456000,-2500.0,0.000412,120]
[421711262,1778051456000,-151.0,0.00041209,120]
[421711274,1778051456000,-60522.12469072,0.000415,120]
[421711234,1778051456000,-700.0,0.0004104,21]
[421711233,1778051456000,-500.0,0.0004104,21]
[421711238,1778051456000,-400.0,0.00041096,30]
[421711232,1778051456000,-520.12089416,0.0004104,21]
[421711236,1778051456000,-192.0,0.00041079,90]
[421711231,1778051456000,-268.92707037,0.00041037,2]
[421711230,1778051456000,-161.49,0.00041,2]
[421711235,1778051456000,-1142.1,0.00041041,120]
[421711237,1778051456000,-400.0,0.00041096,30]
[421711244,1778051456000,-274.42162138,0.00041096,2]
[421711261,1778051456000,-151.0,0.00041209,120]
[421711240,1778051456000,-250.0,0.00041096,30]
[421711248,1778051456000,-150.68,0.00041198,120]
[421711250,1778051456000,-350.0,0.00041209,3]
[421711243,1778051456000,-770.45,0.00041096,120]
[421711239,1778051456000,-376.0,0.00041096,30]
[421711241,1778051456000,-250.0,0.00041096,30]
[421711246,1778051456000,-150.68,0.00041098,120]
[421711247,1778051456000,-156.48951136,0.00041184,120]
[421711251,1778051456000,-282.89652,0.00041209,120]
[421711264,1778051456000,-25092.44820803,0.00041209,70]
[421711252,1778051456000,-282.89652,0.00041209,120]
[421711257,1778051456000,-151.0,0.00041209,30]
[421711245,1778051456000,-759.05809721,0.00041096,7]
[421711242,1778051456000,-168.0,0.00041096,30]
[421711287,1778051456000,-332.99,0.00041684,7]
[421711276,1778051456000,-154.0,0.000415,120]
[421711310,1778051456000,-50000.0,0.000419,120]
[421711309,1778051456000,-150.68,0.00041898,120]
[421711312,1778051456000,-336.92,0.00041973,120]
[421711317,1778051456000,-500.0,0.00041999,2]
[421711318,1778051456000,-413.54631548,0.00041999,30]
[421711320,1778051456000,-500.0,0.00042,2]
[421711319,1778051456000,-50000.0,0.00042,120]
[421711321,1778051456000,-11325.13190072,0.00042,120]
[421711322,1778051456000,-3000.0,0.00042,120]
[421711323,1778051456000,-16137.95681956,0.00042,10]
[421711324,1778051456000,-7844.41944267,0.00042,120]
[421711314,1778051456000,-488.00397762,0.0004199,60]
[421711327,1778051456000,-220.41341064,0.00042,90]
[421711335,1778051456000,-700.0,0.00042,120]
[421711328,1778051456000,-1029.0,0.00042,30]
[421711336,1778051456000,-500.0,0.00042,45]
[421711329,1778051456000,-500.0,0.00042,45]
[421711333,1778051456000,-500.0,0.00042,45]
[421711332,1778051456000,-500.0,0.00042,45]
[421711330,1778051456000,-500.0,0.00042,45]
[421711334,1778051456000,-500.0,0.00042,45]
[421711331,1778051456000,-500.0,0.00042,45]
[421711337,1778051456000,-183.0,0.00042,2]
[421711275,1778051456000,-2500.0,0.000415,120]
[421711326,1778051456000,-2000.0,0.00042,90]
[421711313,1778051456000,-268.92707037,0.00041977,5]
[421711325,1778051456000,-50000.0,0.00042,120]
[421711316,1778051456000,-150.68,0.00041998,120]
[421711265,1778051456000,-500.0,0.00041275,17]
[421711306,1778051456000,-250.24,0.0004183,30]
[421711270,1778051456000,-150.68,0.00041398,120]
[421711283,1778051456000,-1703.32,0.000416,120]
[421711273,1778051456000,-150.68,0.00041498,120]
[421711284,1778051456000,-151.0,0.000416,120]
[421711291,1778051456000,-1725.2,0.00041748,120]
[421711293,1778051456000,-150.68,0.00041798,120]
[421711294,1778051456000,-2500.0,0.000418,120]
[421711292,1778051456000,-250.0,0.00041776,95]
[421711301,1778051456000,-245.49086411,0.0004183,30]
[421711300,1778051456000,-150.0,0.0004183,30]
[421711296,1778051456000,-317.63,0.00041811,120]
[421711305,1778051456000,-922.85402278,0.0004183,30]
[421711307,1778051456000,-700.0,0.00041862,120]
[421711297,1778051456000,-246.92,0.00041823,120]
[421711315,1778051456000,-151.0,0.00041997,14]
[421711311,1778051456000,-189.47926864,0.000419,120]
[421711304,1778051456000,-150.0,0.0004183,30]
[421711308,1778051456000,-500.0,0.00041889,18]
[421711295,1778051456000,-175.17,0.00041811,120]
[421711298,1778051456000,-150.0,0.0004183,30]
[421711302,1778051456000,-151.0,0.0004183,60]
[421711299,1778051456000,-1938.10029955,0.0004183,30]
[421711303,1778051456000,-151.0,0.0004183,60]
[421711371,1778051457000,-1606.78194168,0.00042027,120]
[421711381,1778051457000,-50000.0,0.0004211,120]
[421711375,1778051457000,-606.7551,0.000421,7]
[421711376,1778051457000,-606.7551,0.000421,7]
[421711383,1778051457000,-50000.0,0.0004212,120]
[421711365,1778051457000,-327.715078,0.00042,120]
[421711373,1778051457000,-150.68,0.00042098,120]
[421711374,1778051457000,-50000.0,0.000421,120]
[421711367,1778051457000,-327.715078,0.00042,120]
[421711370,1778051457000,-327.715078,0.00042,120]
[421711377,1778051457000,-606.7551,0.000421,7]
[421711380,1778051457000,-151.0,0.000421,120]
[421711379,1778051457000,-151.0,0.000421,120]
[421711389,1778051457000,-151.0,0.00042123,120]
[421711372,1778051457000,-350.0,0.00042035,5]
[421711382,1778051457000,-250.0,0.0004211,102]
[421711385,1778051457000,-50000.0,0.00042122,120]
[421711384,1778051457000,-50000.0,0.00042121,120]
[421711386,1778051457000,-50000.0,0.00042123,120]
[421711390,1778051457000,-156.203094,0.00042123,120]
[421711395,1778051457000,-169.070089,0.00042123,120]
[421711391,1778051457000,-153.968219,0.00042123,120]
[421711388,1778051457000,-151.0,0.00042123,120]
[421711387,1778051457000,-151.0,0.00042123,120]
[421711392,1778051457000,-151.0,0.00042123,120]
[421711368,1778051457000,-500.0,0.00042,45]
[421711378,1778051457000,-606.7551,0.000421,7]
[421711366,1778051457000,-151.0,0.00042,120]
[421711347,1778051457000,-819.713795,0.00042,120]
[421711369,1778051457000,-151.0,0.00042,120]
[421711394,1778051457000,-169.070089,0.00042123,120]
[421711340,1778051457000,-971.15852387,0.00042,120]
[421711345,1778051457000,-303.28158847,0.00042,120]
[421711338,1778051457000,-500.0,0.00042,45]
[421711343,1778051457000,-151.0,0.00042,120]
[421711341,1778051457000,-50000.0,0.00042,120]
[421711339,1778051457000,-3819.48820206,0.00042,120]
[421711342,1778051457000,-151.0,0.00042,120]
[421711344,1778051457000,-784.49,0.00042,120]
[421711346,1778051457000,-254.415554,0.00042,30]
[421711348,1778051457000,-254.415554,0.00042,30]
[421711359,1778051457000,-500.0,0.00042,120]
[421711364,1778051457000,-327.715078,0.00042,120]
[421711351,1778051457000,-819.713795,0.00042,120]
[421711358,1778051457000,-607.81341,0.00042,120]
[421711354,1778051457000,-1419.836767,0.00042,120]
[421711352,1778051457000,-254.415554,0.00042,30]
[421711350,1778051457000,-254.415554,0.00042,30]
[421711356,1778051457000,-1419.836767,0.00042,120]
[421711355,1778051457000,-1419.836767,0.00042,120]
[421711353,1778051457000,-819.713795,0.00042,120]
[421711357,1778051457000,-1419.836767,0.00042,120]
[421711360,1778051457000,-607.81341,0.00042,120]
[421711363,1778051457000,-607.81341,0.00042,120]
[421711361,1778051457000,-607.81341,0.00042,120]
[421711362,1778051457000,-1260.10021763,0.00042,30]
[421711349,1778051457000,-819.713795,0.00042,120]
[421711393,1778051457000,-169.070089,0.00042123,120]
[421711434,1778051457000,-2000.0,0.0004224,120]
[421711397,1778051457000,-1410.913946,0.00042123,28]
[421711430,1778051457000,-32122.41899674,0.000422,2]
[421711421,1778051457000,-50000.0,0.00042127,120]
[421711431,1778051457000,-652.82,0.000422,120]
[421711432,1778051457000,-2000.0,0.0004224,120]
[421711453,1778051457000,-250.0,0.00042349,110]
[421711442,1778051457000,-150.0,0.00042298,2]
[421711443,1778051457000,-753.0,0.00042298,2]
[421711433,1778051457000,-2000.0,0.0004224,120]
[421711444,1778051457000,-1221.0,0.00042298,2]
[421711439,1778051457000,-150.0,0.00042278,120]
[421711436,1778051457000,-2000.0,0.0004224,120]
[421711441,1778051457000,-3094.0,0.00042298,2]
[421711429,1778051457000,-150.68,0.00042198,120]
[421711435,1778051457000,-2000.0,0.0004224,120]
[421711438,1778051457000,-150.0,0.00042278,120]
[421711440,1778051457000,-616.0,0.00042298,2]
[421711445,1778051457000,-6043.0,0.00042298,2]
[421711448,1778051457000,-40395.73987789,0.000423,30]